Cogmind - Beta 11 X8 @@@ ROGUE MODE // 2021.11.09 @ 19:39:14 Player: Runia Result: Destroyed by G-47 Trooper with Particle Gun Performance ------------- Evolutions (0) 0 Regions Visited (1) 200 Robots Destroyed (16) 80 Value Destroyed (467) 467 Prototype IDs (0) 0 Alien Tech Used (0) 0 Bonus (0) 0 TOTAL SCORE: 747 Bonus ------- None Cogmind --------- Core Integrity 0/250 Matter 247/300 Energy 250/250 System Corruption 0% Temperature Cool (14) Movement Walking (190) Ox1 Location -10/Materials Parts ------- > --- POWER (1) -------- Ion Engine > --- PROPULSION (2) --- Aluminum Leg Aluminum Leg > --- UTILITY (2) ------ Heat Sink Medium Storage Unit > --- WEAPON (2) ------- Particle Gun Assault Rifle > --- INVENTORY (10) --- Aluminum Leg Machine Analyzer Hacking Suite Medium Laser Assault Rifle Assault Rifle Assault Rifle Assault Rifle Grenade Launcher Peak State ------------ > --- POWER ------------ Ion Engine > --- PROPULSION ------- Aluminum Leg Aluminum Leg > --- UTILITY ---------- Heat Sink Small Storage Unit > --- WEAPON ----------- Particle Gun Assault Rifle > --- INVENTORY -------- Ion Engine Light Ion Engine Aluminum Leg Heat Sink Machine Analyzer Hacking Suite Grenade Launcher [Rating: 9] Favorites ----------- Power Ion Engine Engine Ion Engine Propulsion Aluminum Leg Treads Light Treads Leg Aluminum Leg Wheel Compact Wheel Utility Small Storage Unit Device Heat Sink Storage Small Storage Unit Weapon Particle Gun Energy Gun Particle Gun Ballistic Gun Assault Rifle Build | -11 -10 ------- Run | Scr Mat Slots Evolved . | . . Power . | . . Propulsion . | . . Utility . | . . Weapon . | . . Parts Attached 18 | 3 15 Power 4 | . 4 Engine 4 | . 4 Core . | . . Reactor . | . . Propulsion 7 | 3 4 Treads 3 | 3 . Leg 3 | . 3 Wheel 1 | . 1 Hover . | . . Flight . | . . Utility 3 | . 3 Device 2 | . 2 Storage 1 | . 1 Processor . | . . Hackware . | . . Protection . | . . Artifact . | . . Weapon 4 | . 4 Energy Gun 2 | . 2 Energy Cannon . | . . Ballistic Gun 2 | . 2 Ballistic Cannon . | . . Launcher . | . . Special Weapon . | . . Impact Weapon . | . . Slashing Weapon . | . . Piercing Weapon . | . . Special Melee Weapon . | . . Unidentified Prototypes . | . . Parts Lost 7 | . 7 Power 2 | . 2 Propulsion 2 | . 2 Utility . | . . Weapon 3 | . 3 Highest Loss Streak 5 | . 5 Average Slot Usage (%) 89 | . 89 Engine 12 | . 12 Treads 11 | . 11 Leg 10 | . 10 Wheel 3 | . 3 Device 8 | . 8 Storage 14 | . 14 Energy Gun 14 | . 14 Ballistic Gun 12 | . 12 Naked Turns . | . . Heaviest Build 21 | 11 21 Greatest Support 40 | 40 40 Greatest Overweight (x) 4 | . 4 Average Overweight (x) . | . . Largest Inventory Capacity 10 | 8 10 Average Capacity 8 | 8 8 Most Carried 9 | 5 9 Average Carried 4 | 4 4 Final Capacity 10 | 8 10 Final Carried 9 | 2 9 Class Distribution -------------------- 58% | Scavenger-Mutant 41% | Mutant Dominant Class ---------------- Scavenger-Mutant | -10/Materials Resources | -11 -10 ----------- Run | Scr Mat Matter Collected 428 | 200 228 Remotely . | . . Salvage Created 663 | . 663 Parts 30 | . 30 Haulers Intercepted . | . . Recyclers Shooed 1 | . 1 Parts Field Recycled . | . . Retrieved Matter . | . . Parts Self-Destructed . | . . Prevented . | . . Kills | -11 -10 ------- Run | Scr Mat Combat Hostiles Destroyed 11 | . 11 Guns 11 | . 11 Classes Destroyed 5 | . 5 Recycler 2 | . 2 Mechanic 1 | . 1 Operator 1 | . 1 Watcher 1 | . 1 Grunt 11 | . 11 Best Kill Streak 8 | . 8 Combat Bots Only 2 | . 2 Max Kills in Single Turn 1 | . 1 Gunslinging . | . . Exploded . | . . Melee . | . . Uniques/NPCs Destroyed . | . . Combat | -11 -10 -------- Run | Scr Mat Damage Taken 1144 | . 1144 Core 250 | . 250 Absorbed by Shields . | . . Core Remaining (%) 100 | 100 . Volleys Fired 67 | . 67 Largest 2 | . 2 Hottest 115 | . 115 Shots Fired 121 | . 121 Gun 121 | . 121 Cannon . | . . Launcher . | . . Special . | . . Kinetic 61 | . 61 Thermal 60 | . 60 Explosive . | . . Electromagnetic . | . . Robot Hit Streak 6 | . 6 Robot Miss Streak 6 | . 6 Penetration Max . | . . Secondary Targets 3 | . 3 Max Gunslinging Chain 1 | . 1 Shots Hit Robots 69 | . 69 Core Hits 33 | . 33 Critical Kills . | . . Critical Parts Destroyed . | . . Critical Strikes 1 | . 1 Burn 1 | . 1 Melee Attacks . | . . Impact . | . . Slashing . | . . Piercing . | . . Sneak Attacks . | . . Combat Hostiles . | . . Follow-up Attacks . | . . Damage Inflicted 829 | . 829 Guns 829 | . 829 Cannons . | . . Explosions . | . . Melee . | . . Ramming . | . . Kinetic 427 | . 427 Thermal 402 | . 402 Explosive . | . . Electromagnetic . | . . Impact . | . . Slashing . | . . Piercing . | . . Highest Corruption . | . . Average Corruption . | . . Corruption Purged . | . . Overload Shots . | . . Overflow Damage . | . . Projectiles . | . . Explosions . | . . Melee . | . . Knockbacks . | . . Impact . | . . Kinetic . | . . Secondary . | . . Self-Inflicted Damage . | . . Shots . | . . Rammed . | . . Targets Rammed . | . . Kicked . | . . Crushed . | . . Highest Temperature 311 | . 311 Average Temperature 127 | . 127 Received Heat Transfer 687 | . 687 Effects 3 | . 3 Energy Bleed 1 | . 1 Interference 2 | . 2 Siege Activations . | . . Robots Corrupted . | . . Combat Hostiles . | . . Parts Fried . | . . Impact Corruptions . | . . Robots Melted . | . . Combat Hostiles . | . . Parts Melted 2 | . 2 Heat Transferred 1221 | . 1221 Parts Sabotaged . | . . Parts Stolen . | . . Parts Stripped . | . . Power Chain Reactions . | . . Missiles Intercepted . | . . Alert | -11 -10 ------- Run | Scr Mat Peak Influence 292 | . 292 Initial . | . . Average 156 | . 158 Maximum Alert Level 1 | . 1 Low Security (%) 58 | 100 58 Level 1 41 | . 41 Level 2 . | . . Level 3 . | . . Level 4 . | . . Level 5 . | . . High Security . | . . Max Security . | . . Squads Dispatched 2 | . 2 Investigation . | . . Extermination . | . . Reinforcement 2 | . 2 Assault . | . . Garrison . | . . Intercept . | . . Construction Impeded . | . . Haulers Reinforced . | . . Active Scanning Responses . | . . Cargo Convoy Interrupts . | . . Stealth | -11 -10 --------- Run | Scr Mat Distress Signals 3 | . 3 Communications Jammed . | . . Distress Signals . | . . Times Spotted 17 | . 17 Peak Tracking Total 4 | . 4 Tactical Retreats . | . . Traps | -11 -10 ------- Run | Scr Mat Traps Triggered . | . . Indirectly . | . . Trap Hack Attempts . | . . Triggered . | . . Disarmed . | . . Reprogrammed . | . . Reused . | . . Traps Extracted . | . . Installed . | . . Triggered . | . . Machines | -11 -10 ---------- Run | Scr Mat Machines Disabled 1 | . 1 Max in Single Turn 1 | . 1 Machines Sabotaged . | . . Garrisons Compromised . | . . Overloaded Fab Kills . | . . Hacking | -11 -10 --------- Run | Scr Mat Machines Accessed 2 | . 2 Terminals 2 | . 2 Fabricators . | . . Repair Stations . | . . Recycling Units . | . . Scanalyzers . | . . Garrison Access . | . . Total Hacks 5 | . 5 Successful 1 | . 1 Failed 4 | . 4 Catastrophic . | . . Database Lockouts . | . . Manual . | . . Terminals 5 | . 5 Fabricators . | . . Repair Stations . | . . Recycling Units . | . . Scanalyzers . | . . Garrison Access . | . . Terminal Hacks 1 | . 1 Robot Analysis 1 | . 1 Fabricator Hacks . | . . Repair Station Hacks . | . . Recycling Unit Hacks . | . . Scanalyzer . | . . Garrison Access Hacks . | . . Unauthorized Hacks . | . . Terminals . | . . Fabricators . | . . Repair Stations . | . . Recycling Units . | . . Scanalyzers . | . . Garrison Access . | . . Data Cores Recovered . | . . Used . | . . Hacking Detections 2 | . 2 Full Trace Events . | . . Feedback Events . | . . Feedback Blocked . | . . Robot Schematics Acquired . | . . Robots Built . | . . Authchips . | . . Time . | . . Total Robot Build Rating . | . . Part Schematics Acquired . | . . Parts Built . | . . Authchips . | . . Time . | . . Total Part Build Rating . | . . Parts Repaired . | . . Time . | . . Parts Recycled . | . . Recycled Matter . | . . Retrieved Matter . | . . Retrieved Components . | . . Parts Scanalyzed . | . . Part Schematics Acquired . | . . Parts Damaged . | . . Bothacking | -11 -10 ------------ Run | Scr Mat Used RIF Installer . | . . Robots Hacked . | . . Non-combat . | . . Combat . | . . Robot Hacks Applied . | . . Relay Couplers Released . | . . Fabnet Peak Effective % . | . . Robots Rewired . | . . Allies Hacked . | . . Hacks Repelled . | . . Allies | -11 -10 -------- Run | Scr Mat Total Allies . | . . Largest Group . | . . Highest-Rated Group . | . . Highest-Rated Ally . | . . Total Orders . | . . Ally Attacks . | . . Total Damage . | . . Kills . | . . Allies Corrupted . | . . Allies Melted . | . . Intel | -11 -10 ------- Run | Scr Mat Robot Analysis Total 1 | . 1 Derelict Logs Recovered . | . . Drone Launches . | . . Drone Recoveries . | . . Exploration | -11 -10 ------------- Run | Scr Mat Turns Passed 416 | 6 410 Spaces Moved 139 | 1 138 Core 1 | . 1 Treads 42 | 1 41 Legs 71 | . 71 Wheels 25 | . 25 Hover . | . . Flight . | . . Fastest Speed 100 | 160 100 Average Speed 131 | 160 131 Slowest Speed 250 | 160 250 Overloaded Moves . | . . Propulsion Burnouts . | . . Robots Hopped . | . . Cave-ins Triggered . | . . Exploration Rate (%) 14 | 2 26 Regions Visited 1 Branch Regions . Pre-discovered Areas . | . . Known Exits Taken . | . . Unknown Exits Taken 1 | 1 . Scrap Searched . | . . Spaces Dug . | . . Terrain Destroyed . | . . Melee . | . . Projectile . | . . AOE . | . . Terrain Rammed . | . . Walls Destroyed . | . . Machines Disabled . | . . Actions | -11 -10 --------- Run | Scr Mat Total 258 | 7 251 Wait 14 | . 14 Move 138 | . 138 Hop . | . . Pick Up 11 | . 11 Fast Attach 5 | . 5 Attach 5 | 1 4 Detach . | . . Swap 8 | 2 6 Drop 10 | 4 6 Fire 67 | . 67 Melee . | . . Ram . | . . Kick . | . . Crush . | . . Escape Stasis . | . . Rewire . | . . Trap . | . . Miscellaneous . | . . Route ------- -11/Scrapyard -10/Materials (discovered 1 exit: [*Min]) History --------- Turn | Location | Event 7 | -11/Scrapyard | Discovered new exit (range 0) 7 | -11/Scrapyard | Entered Materials 167 | -10/Materials | Core integrity fell below 50% 207 | -10/Materials | Core integrity fell below 20% 213 | -10/Materials | Lost 5 parts (1p2n2w) 341 | -10/Materials | Discovered new exit (range 16) 417 | -10/Materials | Destroyed by G-47 Trooper with Particle Gun Last Messages --------------- 00305_ G-34 Mercenary destroyed. 00324_ R-06 Scavenger collects Aluminum Leg. 00326_ G-34 Mercenary destroyed. 00327_ R-06 Scavenger collects Aluminum Leg. 00331_ R-06 Scavenger destroyed. 00335_ M-13 Machinist destroyed. 00337_ U-05 Engineer builds a Door. 00340_ Acquired Machine Analyzer. 00341_ Acquired 25 matter. 00341_ EXIT=FOUND 00342_ Electrolysis Chamber disabled. 00359_ Dropped Heat Sink. 00360_ Dropped Lgt. Ion Engine. 00362_ Dropped Ion Engine. 00362_ Acquired Assault Rifle. 00366_ Dropped Assault Rifle. 00367_ Acquired Assault Rifle. 00391_ Connecting with Terminal... 00403_ Dropped Sml. Storage Unit. 00412_ Acquired Med. Laser. Map ----- +----------------------------------------------------+ | ??????????????????????????????????/ + "" | | ??????????????????????????????????# # "" | | ??????????????????????????????????# # "" | | ??????????????????????????????????# # " | | ??????????????????????????????????# # | | ??????????????????????????????????# # | | ?????????????????????????########## # | | ?????????????????????????#* # # | | ?????????????????????????# """ #! #?#+# | | ?????????????????????????# """ # = ### # | | ?????????????????????????# """ #* | | ???????????????????###???# !* + | | ??????????????????? #???# * [ # | | ???????????????????# #???# # " " % | | ???????????????????# #???# [ # """% | | ???????????????????# #???# # """= | | ???????????????????# #???#+######## % | | ???????????????????# #???# #??????# [ | | ?????????????????### ###?# #??????# """ | | ?????????????????# ### ######## "" %= | | ?????????????????# T" "" * | | ?????????????????# " ###### %= | | ?????????????????# #????# [= | | ?????????????????# ###+##????# % | | ????????????????####g### ????# " % | | ????????????????# @g # """ ??# T% | | ????????????????# ! # """"" ## " = | | ????????????????# # """"" ## | | ????????????????# """ # """"" !## | | ????????????????# """ # """ ########### | | ????????????????# """ # ??????#?????????? | | ????????????????#########?????????????????? | | | | | | | | | | | | | | | | | | | | | | | | | | | | | | | | | | | | | +----------------------------------------------------+ Best States ------------- Heat Dissipation 35 Energy Generation 10 Energy Capacity 250 Matter Stores 300 Matter Capacity 300 Sight Range 16 Terrain Scan Density 10 Evasion (%) 55 Recoil Reduction 2 Item Schematics ----------------- None Robot Schematics ------------------ None Fabricated ------------ Nothing Alien Tech Used ----------------- None Achievements -------------- None Challenges ------------ None Game ------ Seed HeartFusionKatana Manual? 0 Play Time 00:06:09 Cumulative 454.9 hours Start 2021.11.09 @ 19:35:42 End 2021.11.09 @ 19:39:14 Sessions 1 Manual Loads 0 Difficulty Rogue Special Mode None Game No. 456 Rogue 456 Adventurer 0 Explorer 0 Win Type - Total 9 Types 8/0/0/1/0/0/0/0/0 Lore% 80 Gallery% 93 Achievement% 70 Wizard Run 0 Options --------- ASCII 0 Keyboard 0 Movement Mouse Keybinds 1 Fullscreen 2 Font 24/Smallcaps Map View 76x50 Tactical HUD 1 Map Filters NONE Filters NONE Steam 1 RUN: 39cd8814-a8fe-4f3f-84cb-a415dff80b01